bitfinex-derivatives/quotes_ETHF0:USTF0_20250505
["timestamp","ask_amount","ask_price","bid_price","bid_amount"]
[1746463214048,1.53756202,1811.0,1810.9,10.97147533]
[1746463215949,1.53755239,1811.0,1810.9,10.97147533]
[1746463217455,3.11805239,1811.0,1810.9,10.97147533]
[1746463217650,3.11812117,1811.0,1810.9,10.97147533]
[1746463217947,1.10453,1810.8,1810.7,4.31234]
[1746463218249,1.53774117,1810.8,1810.7,14.17934533]
[1746463218448,1.53774117,1810.8,1810.7,4.31234]
[1746463218647,3.17674117,1810.8,1810.7,4.31234]
[1746463219446,2.74353,1810.8,1810.7,4.31234]
[1746463219654,3.17697428,1810.8,1810.7,4.31234]
[1746463221055,3.17697428,1810.8,1810.7,3.2078]
[1746463221255,1.10466,1810.6,1810.5,4.31249]
[1746463221455,1.53826482,1810.6,1810.5,4.31249]
[1746463223157,1.53824631,1810.6,1810.5,4.31249]
[1746463225648,1.53824631,1810.6,1810.5,1.10469]
[1746463227657,1.53824631,1810.6,1810.5,4.31249]
[1746463227961,1.53844169,1810.6,1810.5,4.31249]
[1746463228362,0.43378169,1810.6,1810.5,14.17949533]
[1746463228563,0.43378169,1810.6,1810.5,16.64019533]
[1746463228760,1.6546,1810.7,1810.6,1.10466]
[1746463229061,2.74358,1810.8,1810.7,1.1046]
[1746463229256,4.77160076,1810.8,1810.7,14.99860533]
[1746463233559,4.77160076,1810.8,1810.7,10.68620533]
[1746463233764,4.77160076,1810.8,1810.7,9.86700533]
[1746463234057,1.10466,1810.6,1810.5,4.31246]
[1746463234262,1.10472,1810.5,1810.4,3.76778]
[1746463234463,2.76209,1810.4,1810.1,7.29659997]
[1746463234659,4.3127,1810.2,1810.1,7.29659997]
[1746463234859,4.74632076,1810.2,1810.1,7.29659997]
[1746463235057,6.46352076,1810.2,1810.1,7.29659997]
[1746463235966,6.46390502,1810.2,1810.1,7.29659997]
[1746463236271,1.10502,1810.0,1809.9,49.20166997]
[1746463236566,1.53902502,1810.0,1809.9,49.20166997]
[1746463236754,1.53902502,1810.0,1809.9,59.0686753]
[1746463236958,3.25622502,1810.0,1809.9,57.9636053]
[1746463237164,3.25622502,1810.0,1809.9,59.0686853]
[1746463237768,3.25554841,1810.0,1809.9,59.0686853]
[1746463237955,3.25554841,1810.0,1809.9,60.7846853]
[1746463239464,3.25538027,1810.0,1809.9,60.7846853]
[1746463239661,3.25538027,1810.0,1809.9,63.9924853]
[1746463239859,3.25538027,1810.0,1809.9,56.69588533]
[1746463241266,3.25501605,1810.0,1809.9,51.77208533]
[1746463241467,3.25501605,1810.0,1809.9,50.66700533]
[1746463241962,3.25501605,1810.0,1809.9,40.8]
[1746463244161,1.7172,1810.0,1809.9,54.97988533]
[1746463244361,2.82222,1810.0,1809.9,54.97988533]
[1746463244663,1.10493,1810.2,1809.9,53.87480533]
[1746463244867,2.68973,1810.2,1810.1,10.97191533]
[1746463245066,3.12241805,1810.2,1810.1,1.10491]
[1746463245570,3.12241805,1810.2,1810.1,11.83221533]
[1746463248477,3.12248298,1810.2,1810.1,11.83221533]
[1746463250379,3.12244651,1810.2,1810.1,11.83221533]
[1746463252181,3.12247791,1810.2,1810.1,11.83221533]
[1746463252480,3.12247791,1810.2,1810.1,9.86700533]
[1746463252884,3.12247791,1810.2,1810.1,10.97196533]
[1746463253286,3.12247791,1810.2,1810.1,9.86700533]
[1746463253483,3.12247791,1810.2,1810.1,10.97196533]
[1746463253785,3.12247791,1810.2,1810.1,9.86700533]
[1746463253983,1.10496,1810.1,1810.0,1.105]
[1746463254184,4.89073033,1810.1,1810.0,1.105]
[1746463254384,4.89073033,1810.1,1810.0,10.97200533]
[1746463254884,4.89073033,1810.1,1810.0,12.67820533]
[1746463255089,4.06883033,1810.1,1810.0,12.67820533]
[1746463256588,4.06883033,1810.1,1810.0,10.97200533]
[1746463257689,4.06905303,1810.1,1810.0,10.97200533]
[1746463259394,4.0693861,1810.1,1810.0,10.97200533]
[1746463262092,4.0693861,1810.1,1810.0,9.86700533]
[1746463262290,1.10502,1810.0,1809.9,40.8]
[1746463262484,3.1774461,1810.0,1809.9,40.8]
[1746463262888,3.1774461,1810.0,1809.9,41.90508]
[1746463264197,3.17883092,1810.0,1809.9,41.90508]
[1746463264698,3.17883092,1810.0,1809.9,40.8]
[1746463266095,3.17883958,1810.0,1809.9,41.90508]
[1746463266501,3.17883958,1810.0,1809.9,53.38788533]
[1746463267798,2.74392,1810.0,1809.9,53.38788533]
[1746463268002,3.178361,1810.0,1809.9,53.38788533]
[1746463269804,3.17844273,1810.0,1809.9,52.60728533]
[1746463271511,3.1784932,1810.0,1809.9,52.60728533]
[1746463272806,3.1784932,1810.0,1809.9,54.29388533]
[1746463273307,3.17846656,1810.0,1809.9,54.29388533]
[1746463275009,1.53956656,1810.0,1809.9,54.29388533]
[1746463275308,0.43454656,1810.0,1809.9,57.50168533]
[1746463275610,6.62987118,1810.4,1810.3,1.10484]
[1746463275813,7.0638142,1810.4,1810.3,10.97184533]
[1746463276705,7.0638142,1810.4,1810.3,15.89894533]
[1746463277011,7.06328375,1810.4,1810.3,15.89894533]
[1746463277207,8.68078375,1810.4,1810.3,15.89894533]
[1746463278112,8.68078375,1810.4,1810.1,3.62167]
[1746463278113,1.1049,1810.2,1810.1,0.8594]
[1746463278310,1.10496,1810.1,1810.0,3.76802]
[1746463278510,3.15587257,1810.1,1810.0,3.76802]
[1746463278809,3.15577651,1810.1,1810.0,13.63502533]
[1746463279006,3.15577651,1810.1,1810.0,15.35432533]
[1746463280217,1.53827651,1810.1,1810.0,15.35432533]
[1746463280408,0.43331651,1810.1,1810.0,16.20942533]
[1746463280806,0.43331651,1810.1,1810.0,21.20942533]
[1746463281006,1.10483,1810.4,1810.3,1.10484]
[1746463281207,1.53814514,1810.4,1810.3,1.10484]
[1746463281407,1.53814514,1810.4,1810.3,10.97184533]
[1746463281808,1.53814514,1810.4,1810.3,11.82694533]
[1746463282512,1.53768932,1810.4,1810.3,11.82694533]
[1746463283715,1.53768932,1810.4,1810.3,15.03474533]
[1746463283716,0.43285932,1810.4,1810.3,15.03474533]
[1746463283919,1.53763932,1810.4,1810.3,15.03474533]
[1746463284214,0.43285932,1810.4,1810.3,15.03474533]
[1746463284717,1.10501,1810.2,1810.1,2.663]
[1746463284907,1.53786932,1810.2,1810.1,12.53000533]
[1746463285106,1.53786932,1810.2,1810.1,13.63507533]
[1746463285410,3.17106932,1810.2,1810.1,13.63507533]
[1746463285617,2.06605932,1810.2,1810.1,13.63507533]
[1746463285918,3.17106932,1810.2,1810.1,13.63507533]
[1746463286420,2.06605932,1810.2,1810.1,13.63507533]
[1746463286814,2.06605932,1810.2,1810.1,15.25157533]
[1746463287212,3.17106932,1810.2,1810.1,15.25157533]
[1746463287414,2.06605932,1810.2,1810.1,15.25157533]
[1746463287610,2.06605932,1810.2,1810.1,12.58857533]
[1746463287813,3.17174757,1810.2,1810.1,12.58857533]
[1746463288023,2.06673757,1810.2,1810.1,12.58857533]
[1746463288216,3.17210953,1810.2,1810.1,12.58857533]
[1746463288717,3.1721221,1810.2,1810.1,12.58857533]
[1746463289616,3.17213618,1810.2,1810.1,12.58857533]
[1746463289921,2.06712618,1810.2,1810.1,12.58857533]
[1746463290120,3.17213618,1810.2,1810.1,12.58857533]
[1746463290421,2.06712618,1810.2,1810.1,12.58857533]
[1746463290621,3.17213618,1810.2,1810.1,12.58857533]
[1746463291523,3.17213523,1810.2,1810.1,12.58857533]
[1746463291711,3.17213523,1810.2,1810.1,13.40867533]
[1746463295019,0.43392523,1810.2,1810.1,16.61647533]
[1746463295224,1.7117,1810.4,1810.3,1.10495]
[1746463295418,3.25021784,1810.4,1810.3,10.97195533]
[1746463298720,3.2497545,1810.4,1810.3,10.97195533]
[1746463300620,3.2498073,1810.4,1810.3,10.97195533]
[1746463300815,2.1449173,1810.4,1810.3,10.97195533]
[1746463301022,3.2498073,1810.4,1810.3,10.97195533]
[1746463302430,3.24987188,1810.4,1810.3,10.97195533]
[1746463304332,2.14496133,1810.4,1810.3,10.97195533]
[1746463304530,3.24985133,1810.4,1810.3,12.63525533]
[1746463304731,3.24985133,1810.4,1810.2,2.76253]
[1746463304732,1.10501,1810.2,1810.1,3.2078]
[1746463304932,1.53827133,1810.2,1810.1,9.86700533]
[1746463305430,3.10067133,1810.2,1810.1,9.86700533]
[1746463305733,1.10513,1810.0,1809.9,41.90519]
[1746463305933,0.43326133,1810.0,1809.9,41.90519]
[1746463306123,2.81562,1810.1,1810.0,1.10513]
[1746463306326,1.53847798,1810.1,1810.0,10.97213533]
[1746463308339,0.43335798,1810.1,1809.7,3.2078]
[1746463308543,1.10523,1809.9,1809.8,10.97222533]
[1746463308834,1.53858798,1809.9,1809.8,10.97222533]
[1746463309037,0.43335798,1809.9,1809.8,10.97222533]
[1746463309637,0.43355066,1809.9,1809.8,51.77226533]
[1746463310239,0.43355066,1809.9,1809.8,55.18796533]
[1746463311442,1.10513,1810.0,1809.9,1.10519]
[1746463311643,1.53836261,1810.0,1809.9,10.97219533]
[1746463313740,0.43323261,1810.0,1809.9,10.97219533]
[1746463314543,0.43323261,1810.0,1809.9,12.64439533]
[1746463314842,0.43323261,1810.0,1809.9,15.85219533]
[1746463315249,6.63001118,1810.3,1810.2,1.10501]
[1746463315449,6.63001118,1810.3,1810.2,10.97201533]
[1746463315450,7.06299132,1810.3,1810.2,10.97201533]
[1746463315638,7.06299132,1810.3,1810.2,1.10501]
[1746463315946,7.06299132,1810.3,1810.2,41.90501]
[1746463316143,5.95803919,1810.3,1810.2,51.77201533]
[1746463316336,7.06296225,1810.3,1810.2,51.77201533]
[1746463316544,6.63001118,1810.3,1810.2,51.77201533]
[1746463316744,7.06296178,1810.3,1810.2,51.77201533]
[1746463317041,1.53790429,1810.3,1810.2,51.77201533]
[1746463317234,1.10495,1810.3,1810.2,51.77201533]
[1746463317438,2.79335,1810.3,1810.2,51.77201533]
[1746463317638,3.2262983,1810.3,1810.2,51.77201533]
[1746463317840,2.79335,1810.3,1810.2,51.77201533]
[1746463318341,1.6884,1810.3,1810.2,51.77201533]
[1746463318548,1.6884,1810.3,1810.2,54.97981533]
[1746463318733,1.6884,1810.3,1810.2,56.54241533]
[1746463318938,2.12128558,1810.3,1810.2,56.54241533]
[1746463319147,2.12128767,1810.3,1810.2,56.54241533]
[1746463319343,1.6884,1810.3,1810.2,56.54241533]
[1746463319646,8.27234118,1810.5,1810.4,1.10489]
[1746463319946,8.70516518,1810.5,1810.4,10.97189533]
[1746463320247,3.1801014,1810.5,1810.4,10.97189533]
[1746463321448,3.17983652,1810.5,1810.4,10.97189533]
[1746463323850,3.17992484,1810.5,1810.4,9.86700533]
[1746463324555,1.10495,1810.3,1810.2,41.90499]
[1746463324851,1.53759484,1810.3,1810.2,41.90499]
[1746463325050,1.53779619,1810.3,1810.2,41.90499]
[1746463326758,1.53779619,1810.3,1810.2,40.8]
[1746463326957,4.74559619,1810.3,1810.2,40.8]
[1746463327463,9.74559619,1810.3,1810.2,40.8]
[1746463327655,1.10507,1810.1,1810.0,3.76811]
[1746463327964,1.10519,1810.0,1809.9,1.10515]
[1746463328262,3.96243619,1810.0,1809.9,51.77215533]
[1746463328467,3.96243619,1810.0,1809.9,41.90515]
[1746463328651,3.96290602,1810.0,1809.9,41.90515]
[1746463330562,3.963069,1810.0,1809.9,41.90515]
[1746463332767,2.857879,1810.0,1809.9,41.90515]
[1746463332957,3.963009,1810.0,1809.9,41.90515]
[1746463334165,3.96294981,1810.0,1809.9,41.90515]
[1746463335567,3.96294981,1810.0,1809.9,51.77215533]
[1746463336665,3.96294981,1810.0,1809.9,40.8]
[1746463336863,1.10544,1809.6,1809.4,3.3766]
[1746463337166,1.10544,1809.6,1809.5,1.10542]
[1746463337368,4.75037943,1809.6,1809.5,51.77242533]
[1746463338166,3.64493943,1809.6,1809.5,51.77242533]
[1746463338371,3.64493943,1809.6,1809.5,53.47672533]
[1746463338666,2.84483943,1809.6,1809.5,53.47672533]
[1746463338854,2.84523475,1809.6,1809.5,53.47672533]
[1746463339761,2.84503594,1809.6,1809.5,53.47672533]
[1746463340568,0.43373594,1809.6,1809.5,53.47672533]
[1746463341572,1.5886,1809.7,1809.6,1.10538]
[1746463341766,2.02213974,1809.7,1809.6,12.60458533]
[1746463343870,3.12745974,1809.7,1809.6,12.60458533]
[1746463344365,2.02213974,1809.7,1809.6,12.60458533]
[1746463344669,3.12745974,1809.7,1809.6,12.60458533]
[1746463344870,2.02213974,1809.7,1809.6,12.60458533]
[1746463348473,2.0217565,1809.7,1809.6,12.60458533]
[1746463349173,3.1270072,1809.7,1809.6,12.60458533]
[1746463349673,3.12702564,1809.7,1809.6,10.97238533]
[1746463351069,3.12774738,1809.7,1809.6,10.97238533]
[1746463351477,2.02242738,1809.7,1809.6,12.58678533]
[1746463352866,1.5886,1809.7,1809.6,51.77238533]
[1746463353066,3.12807108,1809.7,1809.6,51.77238533]
[1746463353568,2.02275108,1809.7,1809.6,51.77238533]
[1746463353970,3.12807108,1809.7,1809.6,51.77238533]
[1746463355673,3.12807108,1809.7,1809.6,40.8]
[1746463355867,1.10556,1809.3,1809.2,3.58496]
[1746463356073,1.53971108,1809.3,1809.2,3.58496]
[1746463356376,1.53971108,1809.3,1809.2,54.25196533]
[1746463356377,0.43415108,1809.3,1809.2,54.25196533]
[1746463357269,0.43415108,1809.3,1809.2,57.45976533]
[1746463358480,1.7003,1809.4,1809.3,1.10556]
[1746463358781,2.13561264,1809.4,1809.3,12.66836533]
[1746463360281,2.13549182,1809.4,1809.3,12.66836533]
[1746463361280,3.24099182,1809.4,1809.3,12.66836533]
[1746463361480,2.13549182,1809.4,1809.3,12.66836533]
[1746463362980,3.24099182,1809.4,1809.3,1.10556]
[1746463363381,2.13549182,1809.4,1809.3,1.10556]
[1746463363576,2.13549182,1809.4,1809.3,10.97256533]
[1746463363974,2.13549182,1809.4,1809.3,12.57626533]
[1746463365578,1.7003,1809.4,1809.3,12.57626533]
[1746463365781,2.13553032,1809.4,1809.3,12.57626533]
[1746463366482,2.13553032,1809.4,1809.3,53.37626533]
[1746463367481,2.13553128,1809.4,1809.3,53.37626533]
[1746463369484,2.13548536,1809.4,1809.3,53.37626533]
[1746463369880,3.24098536,1809.4,1809.3,53.37626533]
[1746463370185,3.24098536,1809.4,1809.3,51.77256533]
[1746463371079,2.8058,1809.4,1809.3,51.77256533]
[1746463371276,3.24096922,1809.4,1809.3,51.77256533]
[1746463372986,3.24083085,1809.4,1809.3,51.77256533]
[1746463375384,3.24083085,1809.4,1809.3,40.8]
[1746463375687,6.44863085,1809.4,1809.3,41.90556]
[1746463376885,1.10562,1809.2,1809.1,11.69093149]
[1746463377082,1.10581,1808.9,1808.8,7.29659997]
[1746463377282,0.43503085,1808.9,1808.8,8.40246997]
[1746463377485,2.3407,1809.0,1808.9,1.10581]
[1746463377787,2.77714307,1809.0,1808.9,1.10581]
[1746463377987,0.43644307,1809.0,1808.9,12.60701533]
[1746463378389,2.4111,1809.1,1809.0,1.10574]
[1746463378690,2.84628231,1809.1,1809.0,10.97274533]
[1746463379391,1.1054,1809.6,1809.3,1.10556]
[1746463379592,3.10055666,1809.5,1809.4,10.97250533]
[1746463379890,10.4032902,1809.5,1809.4,51.77250533]
[1746463380085,10.4032902,1809.5,1809.4,41.9055]
[1746463381392,10.39613979,1809.5,1809.4,41.9055]
[1746463382584,3.09340625,1809.5,1809.4,41.9055]
[1746463382986,1.98796625,1809.5,1809.4,41.9055]
[1746463383187,3.09319633,1809.5,1809.4,41.9055]
[1746463384492,3.09341547,1809.5,1809.4,41.9055]
[1746463385081,3.09349592,1809.5,1809.4,41.9055]
[1746463385684,3.09356226,1809.5,1809.4,41.9055]
[1746463386897,3.09352742,1809.5,1809.4,41.9055]
[1746463387202,1.98808742,1809.5,1809.4,41.9055]
[1746463387392,3.09352742,1809.5,1809.4,41.9055]
[1746463388501,1.98808742,1809.5,1809.4,41.9055]
[1746463388998,3.09352742,1809.5,1809.4,41.9055]
[1746463389397,1.98808742,1809.5,1809.4,41.9055]
[1746463389699,1.98808742,1809.5,1809.4,51.77250533]
[1746463389898,1.98808742,1809.5,1809.4,53.39640533]
[1746463390499,1.98794972,1809.5,1809.4,53.39640533]
[1746463391796,1.98794972,1809.5,1809.4,56.60420533]
[1746463394302,1.98766731,1809.5,1809.4,56.60420533]
[1746463394802,1.98766731,1809.5,1809.4,58.19050533]
[1746463396006,1.98763532,1809.5,1809.4,58.19050533]
[1746463397905,1.98757907,1809.5,1809.4,58.19050533]
[1746463398709,1.98757907,1809.5,1809.4,54.98270533]
[1746463399809,1.98757225,1809.5,1809.4,54.98270533]
[1746463400009,3.09301225,1809.5,1809.4,54.98270533]
[1746463400203,3.09301225,1809.5,1809.4,41.9055]
[1746463400404,3.09301225,1809.5,1809.4,51.77250533]
[1746463401408,1.98757225,1809.5,1809.4,51.77250533]
[1746463401607,1.98779713,1809.5,1809.4,51.77250533]
[1746463401809,3.09323713,1809.5,1809.4,51.77250533]
[1746463403410,3.09331582,1809.5,1809.4,51.77250533]
[1746463405114,3.0927544,1809.5,1809.4,51.77250533]
[1746463405314,1.9873144,1809.5,1809.4,51.77250533]
[1746463405811,1.9873144,1809.5,1809.4,55.07050533]
[1746463406917,1.56,1809.5,1809.4,55.07050533]
[1746463407115,1.98706261,1809.5,1809.4,55.07050533]
[1746463408619,1.98744253,1809.5,1809.4,55.07050533]
[1746463409118,1.98762041,1809.5,1809.4,55.07050533]
[1746463412526,1.98758723,1809.5,1809.4,55.07050533]
[1746463414428,1.98771306,1809.5,1809.4,55.07050533]
[1746463414928,1.98771306,1809.5,1809.4,54.27400533]
[1746463415526,1.98771306,1809.5,1809.4,52.61600533]
[1746463416231,1.98782673,1809.5,1809.4,52.61600533]
[1746463416831,1.98782673,1809.5,1809.4,54.18730533]
[1746463417924,1.56,1809.5,1809.4,54.18730533]
[1746463418127,1.98785306,1809.5,1809.4,54.18730533]
[1746463420623,0.42785306,1809.5,1809.4,54.18730533]
[1746463421131,0.42785306,1809.5,1809.4,57.91930533]
[1746463421633,1.5668,1809.7,1809.6,1.10538]
[1746463421831,1.99436965,1809.7,1809.6,10.97238533]
[1746463422332,1.99436965,1809.7,1809.6,12.63408533]
[1746463422631,1.99436965,1809.7,1809.6,53.43408533]
[1746463423429,1.9940097,1809.7,1809.6,53.43408533]
[1746463425326,3.09925755,1809.7,1809.6,53.43408533]
[1746463426734,1.99393755,1809.7,1809.6,51.77238533]
[1746463427637,0.42713755,1809.7,1809.6,51.77238533]
[1746463427835,5.53195361,1810.0,1809.9,1.10519]
[1746463428141,5.95889115,1810.0,1809.9,14.17999533]
[1746463428346,5.53195361,1810.0,1809.9,14.17999533]
[1746463428530,5.53195361,1810.0,1809.9,61.61859533]
[1746463429343,5.53195361,1810.0,1809.9,65.35059533]
[1746463430738,4.40100361,1810.0,1809.9,65.35059533]
[1746463431543,4.40100361,1810.0,1809.9,68.01359533]
[1746463432035,4.40100361,1810.0,1809.9,63.01359533]
[1746463432336,2.94289361,1810.0,1809.9,63.01359533]
[1746463432545,1.78936361,1810.0,1809.9,63.01359533]
[1746463434848,1.6155,1810.4,1810.3,1.10495]
[1746463435144,1.6155,1810.4,1810.3,14.57695533]
[1746463438047,3.2078,1810.9,1810.8,1.10464]
[1746463438347,10.51858425,1810.9,1810.8,41.90464]
[1746463438547,10.51858425,1810.9,1810.8,40.8]
[1746463439246,9.41400425,1810.9,1810.8,41.90464]
[1746463439443,12.90498425,1810.9,1810.8,41.90464]
[1746463439743,12.48578,1810.9,1810.8,41.90464]
[1746463439947,12.90399811,1810.9,1810.8,41.90464]
[1746463441044,9.69619811,1810.9,1810.8,41.90464]
[1746463441245,9.69609753,1810.9,1810.8,41.90464]
[1746463441448,9.27798,1810.9,1810.8,41.90464]
[1746463442048,4.27798,1810.9,1810.8,41.90464]
[1746463442241,3.1734,1810.9,1810.8,41.90464]
[1746463442439,10.93492,1810.9,1810.5,3.2078]
[1746463442645,1.1048,1810.6,1810.5,1.10477]
[1746463442942,1.1048,1810.6,1810.5,41.90477]
[1746463443147,1.10477,1810.6,1810.5,41.90477]
[1746463443543,1.6384,1810.6,1810.5,41.90477]
[1746463443951,3.2165,1810.6,1810.5,41.90477]
[1746463445049,3.2165,1810.6,1810.5,51.77177533]
[1746463445554,3.2165,1810.6,1810.5,56.56567533]
[1746463446952,3.2165,1810.6,1810.5,60.17067533]
[1746463447453,3.2165,1810.6,1810.5,58.58457533]
[1746463453057,3.2165,1810.6,1810.5,55.37677533]
[1746463454766,3.2165,1810.6,1810.5,58.58457533]
[1746463455465,3.63603288,1810.6,1810.5,58.58457533]
[1746463457465,3.63630741,1810.6,1810.3,8.63318]
[1746463457667,2.01200741,1810.5,1810.4,1.10483]
[1746463458057,2.01200741,1810.5,1810.4,41.90483]
[1746463459370,2.01325214,1810.5,1810.4,41.90483]
[1746463460071,2.01325214,1810.5,1810.4,53.36733533]
[1746463460974,2.01325214,1810.5,1810.4,51.77183533]
[1746463461171,3.11763607,1810.5,1810.4,41.90483]
[1746463461375,2.01280607,1810.5,1810.4,41.90483]
[1746463461773,3.11763607,1810.5,1810.4,41.90483]
[1746463462069,2.01280607,1810.5,1810.4,41.90483]
[1746463462870,2.01340394,1810.5,1810.4,41.90483]
[1746463464474,3.11823394,1810.5,1810.4,41.90483]
[1746463464773,3.11856207,1810.5,1810.4,41.90483]
[1746463465077,2.01373207,1810.5,1810.4,41.90483]
[1746463465372,2.01373207,1810.5,1810.4,43.55503]
[1746463465770,0.42153207,1810.5,1810.4,53.42203533]
[1746463466072,1.678,1810.7,1810.6,1.10477]
[1746463466269,2.09949799,1810.7,1810.6,10.97177533]
[1746463466471,2.67226,1811.0,1810.9,1.10458]
[1746463466674,3.09376573,1811.0,1810.9,40.8]
[1746463466874,8.09376573,1811.0,1810.9,40.8]
[1746463467375,8.09376573,1811.0,1810.9,41.90458]
[1746463467674,3.09376573,1811.0,1810.9,41.90458]
[1746463467874,4.77176573,1811.0,1810.9,41.90458]
[1746463468271,4.77186299,1811.0,1810.9,41.90458]
[1746463468874,4.77185944,1811.0,1810.9,41.90458]
[1746463469776,4.77185944,1811.0,1810.9,40.8]
[1746463469975,4.77185944,1811.0,1810.9,41.90458]
[1746463471480,4.77185944,1811.0,1810.9,40.8]
[1746463471984,4.77201497,1811.0,1810.9,40.8]
[1746463472478,4.77201497,1811.0,1810.9,41.90458]
[1746463473272,4.77201497,1811.0,1810.9,40.8]
[1746463473775,4.35026,1811.0,1810.9,40.8]
[1746463473974,4.77230205,1811.0,1810.9,40.8]
[1746463475682,4.7726705,1811.0,1810.9,40.8]
[1746463476075,4.7726705,1811.0,1810.9,41.90458]
[1746463476281,4.7726705,1811.0,1810.9,40.8]
[1746463477582,4.7725645,1811.0,1810.9,40.8]
[1746463478285,4.7725645,1811.0,1810.9,41.90458]
[1746463478470,4.7725645,1811.0,1810.9,40.8]
[1746463480276,4.7725645,1811.0,1810.7,1.10469]
[1746463480277,1.10464,1810.8,1810.7,1.10469]
[1746463480479,1.5269445,1810.8,1810.7,10.97169533]
[1746463480983,1.5269445,1810.8,1810.7,51.77169533]
[1746463481171,1.52746026,1810.8,1810.7,51.77169533]
[1746463481678,3.24686026,1810.8,1810.7,51.77169533]
[1746463482980,3.24695708,1810.8,1810.7,51.77169533]
[1746463484281,3.24695708,1810.8,1810.7,50.66700533]
[1746463484481,3.24695708,1810.8,1810.7,40.8]
[1746463485584,1.10477,1810.6,1810.5,1.10478]
[1746463485779,1.52768708,1810.6,1810.5,1.10478]
[1746463485986,1.52768708,1810.6,1810.5,41.90478]
[1746463486189,3.22858708,1810.6,1810.5,41.90478]
[1746463488390,2.80567,1810.6,1810.5,41.90478]
[1746463488590,3.22899179,1810.6,1810.5,41.90478]
[1746463490490,3.22873273,1810.6,1810.5,41.90478]
[1746463493889,1.10475,1810.7,1810.6,1.10477]
[1746463494194,1.10477,1810.6,1810.5,41.90478]
[1746463494379,3.94016761,1810.6,1810.5,41.90478]
[1746463495689,3.51577,1810.6,1810.5,41.90478]
[1746463495880,3.94052687,1810.6,1810.5,41.90478]
[1746463497392,3.94052687,1810.6,1810.5,51.77178533]
[1746463497592,3.94059839,1810.6,1810.5,51.77178533]
[1746463497891,3.14939839,1810.6,1810.5,51.77178533]
[1746463498084,3.14939839,1810.6,1810.5,53.49688533]
[1746463499490,3.14938203,1810.6,1810.5,53.49688533]
[1746463500893,2.72457,1810.6,1810.5,53.49688533]
[1746463501189,3.14943924,1810.6,1810.5,53.49688533]
[1746463501590,2.04466924,1810.6,1810.5,53.49688533]
[1746463502387,1.6198,1810.6,1810.5,53.49688533]
[1746463502594,2.044353,1810.6,1810.5,53.49688533]
[1746463503292,3.149123,1810.6,1810.5,53.49688533]
[1746463503796,2.044353,1810.6,1810.5,53.49688533]
[1746463504294,3.14859683,1810.6,1810.5,53.49688533]
[1746463504594,2.04382683,1810.6,1810.5,53.49688533]
[1746463505900,0.42402683,1810.6,1810.5,56.70468533]
[1746463506194,0.42402683,1810.6,1810.5,61.70468533]
[1746463506690,0.42402683,1810.6,1810.5,56.70468533]
[1746463508090,1.10471,1810.7,1810.6,1.10477]
[1746463508301,0.42389835,1810.7,1810.6,12.66277533]
[1746463511599,2.66788,1810.8,1810.7,1.10471]
[1746463511796,3.0922031,1810.8,1810.7,14.21321533]
[1746463513401,3.09204637,1810.8,1810.7,14.21321533]
[1746463513594,3.09204637,1810.8,1810.7,13.43181533]
[1746463513785,1.52884637,1810.8,1810.7,13.43181533]
[1746463513985,0.42416637,1810.8,1810.7,13.43181533]
[1746463514187,0.42416637,1810.8,1810.7,16.63961533]
[1746463515193,8.36737276,1810.9,1810.8,1.10464]
[1746463515398,8.79144559,1810.9,1810.8,10.97164533]
[1746463515993,7.68684559,1810.9,1810.8,10.97164533]
[1746463516193,7.68684559,1810.9,1810.8,12.62294533]
[1746463516498,8.79142559,1810.9,1810.8,12.62294533]
[1746463517688,12.68684559,1810.9,1810.5,2.663]
[1746463517893,1.10477,1810.6,1810.5,2.663]
[1746463518093,1.52884283,1810.6,1810.5,2.663]
[1746463518603,1.52884283,1810.6,1810.5,3.76783]
[1746463518794,3.20894283,1810.6,1810.5,3.76783]
[1746463518994,3.20922111,1810.6,1810.5,3.76783]
[1746463519303,2.10445111,1810.6,1810.5,3.76783]
[1746463519504,2.10445111,1810.6,1810.5,13.63483533]
[1746463519999,3.20922111,1810.6,1810.5,13.63483533]
[1746463520594,0.42435111,1810.6,1810.5,13.63483533]
[1746463520794,1.7157,1810.8,1810.7,1.10471]
[1746463520998,2.13949151,1810.8,1810.7,4.31251]
[1746463521197,2.13949151,1810.8,1810.7,14.17951533]
[1746463521398,2.13949151,1810.8,1810.7,54.97951533]
[1746463523400,0.42379151,1810.8,1810.7,54.97951533]
[1746463524408,5.53687276,1810.9,1810.8,1.10464]
[1746463524607,5.95984604,1810.9,1810.8,12.64594533]
[1746463525806,7.67834604,1810.9,1810.8,12.64594533]
[1746463526910,5.95984604,1810.9,1810.8,12.64594533]
[1746463527106,0.42297328,1810.9,1810.8,12.64594533]
[1746463529012,8.27749276,1811.0,1810.9,1.10458]
[1746463529213,8.70020063,1811.0,1810.9,10.97158533]
[1746463529502,8.70020063,1811.0,1810.9,14.17938533]
[1746463529712,7.59568063,1811.0,1810.9,14.17938533]
[1746463530711,8.70020063,1811.0,1810.9,14.17938533]
[1746463531108,3.16332787,1811.0,1810.9,14.17938533]
[1746463531509,2.05880787,1811.0,1810.9,14.17938533]
[1746463531814,3.16324124,1811.0,1810.9,14.17938533]
[1746463532009,2.05872124,1811.0,1810.9,14.17938533]
[1746463533608,3.16324124,1811.0,1810.9,10.97158533]
[1746463534914,2.05872124,1811.0,1810.9,10.97158533]
[1746463535414,2.05875605,1811.0,1810.9,10.97158533]
[1746463535613,3.16327605,1811.0,1810.9,10.97158533]
[1746463535813,2.05875605,1811.0,1810.9,10.97158533]
[1746463536113,3.16327605,1811.0,1810.9,10.97158533]
[1746463536510,2.05875605,1811.0,1810.9,10.97158533]
[1746463537217,2.05876954,1811.0,1810.9,10.97158533]
[1746463537417,3.16328954,1811.0,1810.9,9.86700533]
[1746463537708,1.10483,1810.5,1810.4,7.29659997]
[1746463537914,1.52749954,1810.5,1810.4,48.09659997]
[1746463538107,1.52749954,1810.5,1810.4,59.0684953]
[1746463538503,4.04109954,1810.5,1810.4,59.0684953]
[1746463538816,2.93626954,1810.5,1810.4,51.77189533]
[1746463539009,4.04109954,1810.5,1810.4,51.77189533]
[1746463539515,2.93626954,1810.5,1810.4,51.77189533]
[1746463540817,2.93720791,1810.5,1810.4,51.77189533]
[1746463541018,2.93720599,1810.5,1810.4,51.77189533]
[1746463541520,2.10760599,1810.5,1810.4,51.77189533]
[1746463541914,2.10760599,1810.5,1810.4,53.40839533]
[1746463542516,0.42360599,1810.5,1810.4,53.40839533]
[1746463542818,5.53687276,1810.7,1810.6,1.10477]
[1746463543111,9.18628276,1810.7,1810.6,10.97177533]
[1746463543317,9.60901094,1810.7,1810.6,10.97177533]
[1746463543517,9.60901108,1810.7,1810.6,10.97177533]
[1746463543706,9.18628276,1810.7,1810.6,10.97177533]